fUSD/lending_fUSD_20260117
["ID","MTS","AMOUNT","RATE_DAILY","PERIOD"]
[402219185,1768608650097,-320.09,0.00017264,2]
[402219186,1768608650107,-320.09,0.00017815,2]
[402219187,1768608650116,-106.74492681,0.000179,2]
[402219188,1768608650173,-276.00947847,0.000179,2]
[402219189,1768608651228,-65.24990366,0.000179,2]
[402219190,1768608651238,-16916.02782255,0.00018,2]
[402219191,1768608651268,-895.15897997,0.00018,2]
[402219192,1768608651287,-598.1162004,0.00018,2]
[402219193,1768608654325,559.724999,0.00013402,2]
[402219194,1768608742167,10000.01,0.00013315,2]
[402219195,1768608742195,10000.01,0.00013315,2]
[402219196,1768608742223,10000.01,0.00013315,2]
[402219197,1768608742249,3212.9672,0.00013315,2]
[402219198,1768608760263,6787.0428,0.00013215,2]
[402219199,1768608760297,10000.01,0.00013215,2]
[402219200,1768608760330,10000.01,0.00013215,2]
[402219201,1768608760363,10000.01,0.00013215,2]
[402219202,1768608760393,10000.01,0.00013215,2]
[402219203,1768608760427,10000.01,0.00013215,2]
[402219204,1768608760460,10000.01,0.00013215,2]
[402219205,1768608760492,10000.01,0.00013215,2]
[402219206,1768608760788,10000.01,0.00013215,2]
[402219207,1768608760825,10000.01,0.00013215,2]
[402219208,1768608777230,-6940.285001,0.00013215,2]
[402219209,1768608777343,-10000.01,0.00013215,2]
[402219210,1768608777526,-10000.01,0.00013215,2]
[402219211,1768608777660,-10000.01,0.00013215,2]
[402219212,1768608778969,-10000.01,0.00013215,2]
[402219213,1768608787883,-300.0,0.00013214,2]
[402219214,1768608787938,-9400.01,0.00013215,2]
[402219215,1768608794178,-10000.01,0.00013215,2]
[402219216,1768608794861,1000.0,0.00030137,120]
[402219217,1768608809306,1000.0,0.00030137,120]
[402219218,1768608822574,1000.0,0.00030137,120]
[402219219,1768608825250,1300.0,0.000129,4]
[402219220,1768608853609,1075.6,0.00030137,120]
[402219221,1768608974731,-193.314864,0.00013075,2]
[402219222,1768608974758,-250.0,0.00013108,2]
[402219223,1768608974785,-290.92210688,0.00013141,2]
[402219224,1768608974809,-513.69802199,0.00013141,2]
[402219225,1768608977340,-0.37553928,0.00013141,2]
[402219226,1768608977367,-394.24572605,0.00013165,2]
[402219227,1768608977394,-209.20770058,0.00013181,2]
[402219228,1768608989585,-198.17,0.00013141,2]
[402219229,1768608992301,-300.0,0.00013141,2]
[402219230,1768608994002,-565.70718826,0.00013141,2]
[402219231,1768608996334,-190.354199,0.00013141,2]
[402219232,1768609000373,-500.0,0.00013141,2]
[402219233,1768609002505,-200.0,0.00013141,2]
[402219234,1768609004583,-500.0,0.00013141,2]
[402219235,1768609171499,-242.87440588,0.00013081,2]
[402219236,1768609171538,-242.87440588,0.00013111,2]
[402219237,1768609171577,-282.94622757,0.0001314,2]
[402219238,1768609215223,-260.29062073,0.00013127,2]
[402219239,1768609217639,-171.33430869,0.00013127,2]
[402219240,1768609219124,-192.35570445,0.00013127,2]
[402219241,1768609230763,-322.63552027,0.00013061,2]
[402219242,1768609233922,-170.20645557,0.00013061,2]
[402219243,1768609237694,-175.76184302,0.00013061,2]
[402219244,1768609274591,-100.09122014,0.00013061,2]
[402219245,1768609274635,-63.30432074,0.00013088,2]
[402219246,1768609319552,-198.8985237,0.00013088,2]
[402219247,1768609319578,-8.3247603,0.00013114,2]
[402219248,1768609321233,-345.49190449,0.00013115,2]
[402219249,1768609326470,-300.0,0.00013114,2]
[402219250,1768609326496,-119.49371715,0.00013115,2]
[402219251,1768609328071,-253.02020895,0.00013115,2]
[402219252,1768609330049,-529.45899289,0.00013115,2]
[402219253,1768609334785,-244.40126019,0.00013115,2]
[402219254,1768609337068,-294.29083844,0.00013115,2]
[402219255,1768609341961,-279.09024509,0.00013115,2]
[402219256,1768609349557,-188.41388948,0.00013115,2]
[402219257,1768609351996,-200.22499774,0.00013115,2]
[402219258,1768609353781,-320.69241555,0.00013115,2]
[402219259,1768609355999,-198.74580285,0.00013115,2]
[402219260,1768609359017,-300.24560225,0.00013027,2]
[402219261,1768609409533,-154.52,0.00013015,2]
[402219262,1768609426545,1276.38,0.00012631,2]
[402219263,1768609439401,-88.35440588,0.00013015,2]
[402219264,1768609439432,-23.75439775,0.00013027,2]
[402219265,1768609439465,-250.0,0.00013071,2]
[402219266,1768609439495,-250.0,0.00013102,2]
[402219267,1768609439525,-300.0,0.00013114,2]
[402219268,1768609439556,-667.0,0.00013114,2]
[402219269,1768609439690,-6841.79239274,0.00013115,2]
[402219270,1768609439733,-4603.26506556,0.00013115,2]
[402219271,1768609439769,-793.47986888,0.00013115,2]
[402219272,1768609439803,-2500.0,0.00013115,2]
[402219273,1768609439836,-2170.5061,0.00013115,2]
[402219274,1768609439866,-310.13,0.00013126,2]
[402219275,1768609439959,-38.7378,0.00013127,2]
[402219276,1768609439991,-938.15472425,0.00013127,2]
[402219277,1768609440021,-300.0,0.0001314,2]
[402219278,1768609440054,-1200.0,0.0001314,2]
[402219279,1768609440086,-150.0,0.0001314,2]
[402219280,1768609440121,-510.88548379,0.00013141,2]
[402219281,1768609440292,-3801.92958392,0.00013141,2]
[402219282,1768609442605,-300.0,0.00013206,2]
[402219283,1768609442638,-150.0,0.00013206,2]
[402219284,1768609442672,-200.0,0.00013207,2]
[402219285,1768609442705,-500.0,0.00013207,2]
[402219286,1768609442740,-500.0,0.00013207,2]
[402219287,1768609442775,-500.0,0.00013207,2]
[402219288,1768609442810,-500.0,0.00013207,2]
[402219289,1768609442848,-205.06792171,0.00013207,2]
[402219290,1768609442884,-500.0,0.00013207,2]
[402219291,1768609442919,-500.0,0.00013207,2]
[402219292,1768609442955,-500.0,0.00013207,2]
[402219293,1768609442989,-500.0,0.00013207,2]
[402219294,1768609443422,-289.87415658,0.00013207,2]
[402219295,1768609445474,-210.12584342,0.00013207,2]
[402219296,1768609445508,-500.0,0.00013207,2]
[402219297,1768609445542,-500.0,0.00013207,2]
[402219298,1768609445576,-151.0,0.00013207,2]
[402219299,1768609445609,-151.0,0.00013207,2]
[402219300,1768609445641,-151.0,0.00013207,2]
[402219301,1768609445673,-151.0,0.00013207,2]
[402219302,1768609445706,-151.0,0.00013207,2]
[402219303,1768609445738,-151.0,0.00013207,2]
[402219304,1768609445770,-151.0,0.00013207,2]
[402219305,1768609445803,-151.0,0.00013207,2]
[402219306,1768609445836,-200.0,0.00013207,2]
[402219307,1768609445868,-151.0,0.00013207,2]
[402219308,1768609445901,-151.0,0.00013207,2]
[402219309,1768609445933,-151.0,0.00013207,2]
[402219310,1768609445970,-500.0,0.00013212,2]
[402219311,1768609446008,-500.0,0.00013212,2]
[402219312,1768609446045,-500.0,0.00013212,2]
[402219313,1768609446082,-357.75831316,0.00013212,2]
[402219314,1768609446236,-142.24168684,0.00013212,2]
[402219315,1768609446279,-500.0,0.00013212,2]
[402219316,1768609446317,-500.0,0.00013212,2]
[402219317,1768609446353,-500.0,0.00013212,2]
[402219318,1768609446389,-500.0,0.00013212,2]
[402219319,1768609446425,-500.0,0.00013212,2]
[402219320,1768609446462,-500.0,0.00013212,2]
[402219321,1768609446498,-500.0,0.00013212,2]
[402219322,1768609446535,-500.0,0.00013212,2]
[402219323,1768609446573,-500.0,0.00013212,2]
[402219324,1768609446628,-215.52662632,0.00013212,2]
[402219325,1768609446804,-284.47337368,0.00013212,2]
[402219326,1768609446848,-500.0,0.00013212,2]
[402219327,1768609446888,-500.0,0.00013212,2]
[402219328,1768609446928,-500.0,0.00013212,2]
[402219329,1768609446967,-500.0,0.00013212,2]
[402219330,1768609447007,-500.0,0.00013212,2]
[402219331,1768609447044,-500.0,0.00013212,2]
[402219332,1768609447082,-500.0,0.00013212,2]
[402219333,1768609447123,-500.0,0.00013212,2]
[402219334,1768609447165,-500.0,0.00013212,2]
[402219335,1768609448616,-426.71506052,0.00013212,2]
[402219336,1768609448635,-73.28493948,0.00013212,2]
[402219337,1768609448644,-357.77831316,0.00013212,2]
[402219338,1768609469562,-185.85467007,0.00013206,2]
[402219339,1768609472197,-114.14532993,0.00013206,2]
[402219340,1768609472221,-116.3040568,0.0001321,2]
[402219341,1768609514553,-133.6959432,0.0001321,2]
[402219342,1768609514579,-151.08296096,0.00013211,2]
[402219343,1768609519766,-168.63109584,0.00013115,2]
[402219344,1768609566147,-300.0,0.00013114,2]
[402219345,1768609566209,-2932.43330416,0.00013115,2]
[402219346,1768609566661,-3535.14339168,0.00013115,2]
[402219347,1768609567096,-10000.01,0.00013115,2]
[402219348,1768609567310,-10000.01,0.00013115,2]
[402219349,1768609567417,-10000.01,0.00013115,2]
[402219350,1768609567491,-10000.01,0.00013115,2]
[402219351,1768609567854,-10000.01,0.00013115,2]
[402219352,1768609568891,-10000.01,0.00013115,2]
[402219353,1768609569054,-3445.48959168,0.00013115,2]
[402219354,1768609569087,-3109.03081664,0.00013115,2]
[402219355,1768609629385,1300.0,0.000129,4]
[402219356,1768609631480,2700.0,0.000139,5]
[402219357,1768609700737,-300.0,0.00013115,2]
[402219358,1768609700772,-1474.7671,0.00013115,2]
[402219359,1768609700804,-840.2166,0.00013115,2]
[402219360,1768609700835,-236.7828,0.00013115,2]
[402219361,1768609700866,-416.304,0.00013115,2]
[402219362,1768609701082,-204.9937,0.00013115,2]
[402219363,1768609701130,-229.19472414,0.00013159,2]
[402219364,1768609701162,-748.48614744,0.00013159,2]
[402219365,1768609701194,-243.57931379,0.00013207,2]
[402219366,1768609701226,-111.36122926,0.00013207,2]
[402219367,1768609701405,-388.63877074,0.00013207,2]
[402219368,1768609701439,-151.0,0.00013207,2]
[402219369,1768609701474,-151.0,0.00013207,2]
[402219370,1768609701507,-151.0,0.00013207,2]
[402219371,1768609701541,-151.0,0.00013207,2]
[402219372,1768609701574,-151.0,0.00013207,2]
[402219373,1768609701609,-151.0,0.00013207,2]
[402219374,1768609701642,-151.0,0.00013207,2]
[402219375,1768609701677,-151.0,0.00013207,2]
[402219376,1768609701711,-151.0,0.00013207,2]
[402219377,1768609701743,-151.0,0.00013207,2]
[402219378,1768609701776,-151.0,0.00013207,2]
[402219379,1768609701809,-1200.0,0.00013211,2]
[402219380,1768609701842,-150.0,0.00013211,2]
[402219381,1768609701875,-200.0,0.00013212,2]
[402219382,1768609701913,-500.0,0.00013212,2]
[402219383,1768609701957,-142.22168684,0.00013212,2]
[402219384,1768609702001,-500.0,0.00013212,2]
[402219385,1768609702044,-16.28908484,0.00013212,2]
[402219386,1768609702112,-483.71091516,0.00013212,2]
[402219387,1768609702154,-500.0,0.00013212,2]
[402219388,1768609702196,-500.0,0.00013212,2]
[402219389,1768609702237,-500.0,0.00013212,2]
[402219390,1768609702279,-500.0,0.00013212,2]
[402219391,1768609702321,-500.0,0.00013212,2]
[402219392,1768609702364,-500.0,0.00013212,2]
[402219393,1768609702406,-500.0,0.00013212,2]
[402219394,1768609702447,-386.9775983,0.00013212,2]
[402219395,1768609702490,-500.0,0.00013212,2]
[402219396,1768609703574,-500.0,0.00013212,2]
[402219397,1768609703618,-500.0,0.00013212,2]
[402219398,1768609703662,-500.0,0.00013212,2]
[402219399,1768609703707,-500.0,0.00013212,2]
[402219400,1768609703755,-500.0,0.00013212,2]
[402219401,1768609703801,-500.0,0.00013212,2]
[402219402,1768609703847,-500.0,0.00013212,2]
[402219403,1768609703891,-500.0,0.00013212,2]
[402219404,1768609703941,-500.0,0.00013212,2]
[402219405,1768609703986,-500.0,0.00013212,2]
[402219406,1768609704175,-500.0,0.00013212,2]
[402219407,1768609704218,-500.0,0.00013212,2]
[402219408,1768609704264,-500.0,0.00013212,2]
[402219409,1768609704308,-500.0,0.00013212,2]
[402219410,1768609704354,-300.0,0.00013212,2]
[402219411,1768609704398,-500.0,0.00013212,2]
[402219412,1768609704431,-150.0,0.00013214,2]
[402219413,1768609704467,-150.0,0.00013214,2]
[402219414,1768609704503,-1432.67,0.00013214,2]
[402219415,1768609704537,-241.27709207,0.00013214,2]
[402219416,1768609704699,-500.0,0.00013214,2]
[402219417,1768609704732,-260.82663906,0.00013214,2]
[402219418,1768609704766,-500.0,0.00013214,2]
[402219419,1768609704799,-197.57012484,0.00013214,2]
[402219420,1768609704834,-216.59647902,0.00013214,2]
[402219421,1768609707879,-424.40431676,0.00013215,2]
[402219422,1768609707915,-260.82663906,0.00013215,2]
[402219423,1768609707942,-500.0,0.00013215,2]
[402219424,1768609707974,-197.57012484,0.00013215,2]
[402219425,1768609708007,-216.59647902,0.00013215,2]
[402219426,1768609708045,-6650.02351416,0.00013215,2]
[402219427,1768609708100,-10000.01,0.00013215,2]
[402219428,1768609708176,-10000.01,0.00013215,2]
[402219429,1768609708254,-10000.01,0.00013215,2]
[402219430,1768609709072,-10000.01,0.00013215,2]
[402219431,1768609709110,-10000.01,0.00013215,2]
[402219432,1768609710225,-10000.01,0.00013215,2]
[402219433,1768609710243,-10000.01,0.00013215,2]
[402219434,1768609710293,-10000.01,0.00013215,2]
[402219435,1768609710311,-10000.01,0.00013215,2]
[402219436,1768609710337,-10000.01,0.00013215,2]
[402219437,1768609710358,-10000.01,0.00013215,2]
[402219438,1768609716304,-10000.01,0.00013215,2]
[402219439,1768609716438,-10000.01,0.00013215,2]
[402219440,1768609716572,-10000.01,0.00013215,2]
[402219441,1768609722515,-4320.5157778,0.00013159,2]
[402219442,1768609722571,-1358.9784444,0.00013215,2]
[402219443,1768609722654,-10000.01,0.00013215,2]
[402219444,1768609722797,-10000.01,0.00013215,2]
[402219445,1768609725824,-10000.01,0.00013215,2]
[402219446,1768609726064,-10000.01,0.00013215,2]
[402219447,1768609726194,-10000.01,0.00013215,2]
[402219448,1768609726357,-10000.01,0.00013215,2]
[402219449,1768609726510,-10000.01,0.00013215,2]
[402219450,1768609729908,-1187.21909633,0.00013159,2]
[402219451,1768609729971,-7625.57180734,0.00013215,2]
[402219452,1768609730022,-10000.01,0.00013215,2]
[402219453,1768609733748,-10000.01,0.00013215,2]
[402219454,1768609733837,-10000.01,0.00013215,2]
[402219455,1768609734342,-10000.01,0.00013215,2]
[402219456,1768609734391,-10000.01,0.00013215,2]
[402219457,1768609734452,-10000.01,0.00013215,2]
[402219458,1768609739902,-10000.01,0.00013215,2]
[402219459,1768609740028,-10000.01,0.00013215,2]
[402219460,1768609740156,-10000.01,0.00013215,2]
[402219461,1768609740299,-10000.01,0.00013215,2]
[402219462,1768609747403,-300.0,0.00013214,2]
[402219463,1768609747884,-9400.01,0.00013215,2]
[402219464,1768609748044,-10000.01,0.00013215,2]
[402219465,1768609748095,-10000.01,0.00013215,2]
[402219466,1768609748217,-10000.01,0.00013215,2]
[402219467,1768609750742,-10000.01,0.00013215,2]
[402219468,1768609751344,-253.39799004,0.00013215,2]
[402219469,1768609753726,-10000.01,0.00013215,2]
[402219470,1768609753840,-10000.01,0.00013215,2]
[402219471,1768609753977,-10000.01,0.00013215,2]
[402219472,1768609754108,-10000.01,0.00013215,2]
[402219473,1768609757505,-10000.01,0.00013215,2]
[402219474,1768609784621,-289.45967145,0.00013041,2]
[402219475,1768609796843,154.0,0.00030136,120]
[402219476,1768609802824,1211.52,0.00012785,2]
[402219482,1768609831984,-1200.0,0.0001304,2]
[402219484,1768609831994,-150.0,0.0001304,2]
[402219486,1768609832004,-257.0,0.0001304,2]
[402219488,1768609832014,-300.0,0.0001304,2]
[402219489,1768609832024,-3491.67852417,0.00013041,2]
[402219490,1768609832035,-999.67682255,0.00013041,2]
[402219491,1768609832155,-399701.09507256,0.00013041,2]
[402219492,1768609832167,-49027.90571161,0.00013041,2]
[402219493,1768609832178,-148376.92089052,0.00013041,2]
[402219494,1768609832190,-18642.61435392,0.00013041,2]
[402219495,1768609832216,-7805.35260329,0.00013041,2]
[402219496,1768609832231,-320.124,0.00013041,2]
[402219497,1768609832251,-1014.02545008,0.00013041,2]
[402219498,1768609832262,-2225.9,0.00013041,2]
[402219499,1768609832289,-335.26580545,0.00013041,2]
[402219500,1768609832308,-2579.82837852,0.00013041,2]
[402219521,1768609838092,-722.46490153,0.00013041,2]
[402219522,1768609838103,-403.1244299,0.00013041,2]
[402219523,1768609838287,-121869.1882921,0.00013041,2]
[402219524,1768609838299,-605.4735,0.00013041,2]
[402219525,1768609838318,-647.24608493,0.00013041,2]
[402219526,1768609838330,-86241.42024132,0.00013041,2]
[402219527,1768609838351,-1275.36724596,0.00013041,2]
[402219528,1768609838363,-1650.0,0.00013041,2]
[402219593,1768609840305,-151775.86802014,0.00013041,2]
[402219594,1768609840316,-293.44573887,0.00013059,2]
[402219595,1768609840326,-13822.46476376,0.00013159,2]
[402219596,1768609840335,-1852.42,0.00013259,2]
[402219597,1768609840346,-1000.0,0.00013315,2]
[402219598,1768609840355,-1992.6875,0.00013315,2]
[402219599,1768609840364,-8487.0495,0.00013315,2]
[402219600,1768609840374,-200.0,0.00013344,2]
[402219601,1768609840383,-500.0,0.00013424,2]
[402219602,1768609840394,-150.0,0.00013424,2]
[402219603,1768609840404,-2210.0,0.00013424,2]
[402219604,1768609840414,-500.0,0.00013424,2]
[402219605,1768609840423,-250.0,0.00013424,2]
[402219606,1768609840434,-150.0,0.00013424,2]
[402219607,1768609840443,-500.0,0.00013424,2]
[402219608,1768609840454,-500.0,0.00013424,2]
[402219609,1768609840464,-150.0,0.00013424,2]
[402219610,1768609840473,-150.0,0.00013424,2]
[402219611,1768609840483,-500.0,0.00013424,2]
[402219612,1768609840492,-500.0,0.00013424,2]
[402219613,1768609840502,-500.0,0.00013424,2]
[402219614,1768609840512,-3240.0,0.00013425,2]
[402219615,1768609840522,-200.0,0.00013478,2]
[402219616,1768609840532,-500.0,0.00013479,2]
[402219617,1768609840541,-243.01588719,0.00013479,2]
[402219618,1768609840551,-2210.0,0.00013479,2]
[402219619,1768609840560,-500.0,0.00013479,2]
[402219620,1768609840570,-150.0,0.00013479,2]
[402219621,1768609840579,-500.0,0.00013479,2]
[402219622,1768609840588,-500.0,0.00013479,2]
[402219623,1768609840598,-150.0,0.00013479,2]
[402219624,1768609840608,-150.0,0.00013479,2]
[402219625,1768609840617,-500.0,0.00013479,2]
[402219626,1768609840626,-500.0,0.00013479,2]
[402219627,1768609840636,-500.0,0.00013479,2]
[402219628,1768609840646,-1432.67,0.00013488,2]
[402219629,1768609840655,-787.25604664,0.000135,2]
[402219630,1768609840664,-500.0,0.00013534,2]
[402219631,1768609840673,-2210.0,0.00013534,2]
[402219632,1768609840683,-333.00097372,0.00013534,2]
[402219633,1768609840693,-150.0,0.00013534,2]
[402219634,1768609840702,-500.0,0.00013534,2]
[402219635,1768609840712,-350.0,0.00013534,2]
[402219636,1768609840722,-150.0,0.00013534,2]
[402219637,1768609840731,-150.0,0.00013534,2]
[402219638,1768609840740,-150.0,0.00013534,2]
[402219639,1768609840749,-500.0,0.00013534,2]
[402219640,1768609840758,-500.0,0.00013534,2]
[402219641,1768609840768,-2210.0,0.00013588,2]
[402219642,1768609840777,-202.0,0.00013588,2]
[402219643,1768609840786,-500.0,0.00013588,2]
[402219644,1768609840795,-150.0,0.00013588,2]
[402219645,1768609840805,-500.0,0.00013588,2]
[402219646,1768609840814,-500.0,0.00013588,2]
[402219647,1768609840823,-451.63661352,0.0001359,2]
[402219648,1768609840832,-153084.65429372,0.000136,2]
[402219649,1768609840841,-200.0,0.00013612,2]
[402219650,1768609840850,-2210.0,0.00013643,2]
[402219651,1768609840860,-549.99999999,0.00013643,2]
[402219652,1768609840869,-181.5474637,0.00013643,2]
[402219653,1768609840879,-551.64421401,0.00013643,2]
[402219654,1768609840888,-350.0,0.00013643,2]
[402219655,1768609840897,-179.83381,0.00013683,2]
[402219656,1768609840907,-4320.51577774,0.00013686,2]
[402219657,1768609840916,-13822.4647637,0.00013686,2]
[402219658,1768609840926,-2210.0,0.00013698,2]
[402219659,1768609840937,-525.29097459,0.00013698,2]
[402219660,1768609840947,-500.0,0.00013698,2]
[402219661,1768609840956,-500.0,0.00013698,2]
[402219662,1768609840965,-500.0,0.00013698,2]
[402219663,1768609840974,-500.0,0.00013698,2]
[402219664,1768609840984,-437.56042385,0.00013698,2]
[402219665,1768609840993,-500.0,0.00013698,2]
[402219666,1768609841003,-500.0,0.00013698,2]
[402219667,1768609841015,-500.0,0.00013698,2]
[402219668,1768609841025,-500.0,0.00013698,2]
[402219669,1768609841034,-500.0,0.00013698,2]
[402219670,1768609841043,-500.0,0.00013698,2]
[402219671,1768609841052,-502.81706952,0.00013698,2]
[402219672,1768609841063,-500.0,0.00013698,2]
[402219673,1768609841072,-500.0,0.00013698,2]
[402219674,1768609841082,-521.26481136,0.00013698,2]
[402219675,1768609841091,-500.0,0.00013698,2]
[402219676,1768609841100,-517.59088547,0.00013698,2]
[402219677,1768609841109,-500.0,0.00013698,2]
[402219678,1768609841119,-500.0,0.00013698,2]
[402219679,1768609841128,-500.0,0.00013698,2]
[402219680,1768609841137,-500.0,0.00013698,2]
[402219681,1768609841146,-500.0,0.00013698,2]
[402219682,1768609841155,-500.0,0.00013698,2]
[402219683,1768609841165,-500.0,0.00013698,2]
[402219684,1768609841174,-500.0,0.00013698,2]
[402219685,1768609841183,-545.75807735,0.00013699,2]
[402219686,1768609841193,-357.96,0.000137,2]
[402219687,1768609841202,-357.96,0.000137,2]
[402219688,1768609841212,-357.96,0.000137,2]
[402219689,1768609841221,-357.96,0.000137,2]
[402219690,1768609841230,-357.96,0.000137,2]
[402219691,1768609841240,-200.0,0.00013748,2]
[402219692,1768609841250,-2210.0,0.00013753,2]
[402219693,1768609841259,-1432.67,0.00013762,2]
[402219694,1768609841268,-2210.0,0.00013808,2]
[402219695,1768609841277,-748.48614739,0.00013836,2]
[402219696,1768609841287,-150.0,0.00013858,2]
[402219697,1768609841296,-2210.0,0.00013862,2]
[402219698,1768609841305,-2210.0,0.00013917,2]
[402219699,1768609841316,-1000.0,0.00013952,2]
[402219700,1768609841326,-2210.0,0.00013972,2]
[402219701,1768609841335,-476.10981014,0.00014,2]
[402219702,1768609841344,-2210.0,0.00014027,2]
[402219703,1768609841353,-1432.67,0.00014036,2]
[402219704,1768609841363,-2210.0,0.00014082,2]
[402219705,1768609841372,-500.0,0.00014099,2]
[402219706,1768609841382,-500.0,0.00014099,2]
[402219707,1768609841391,-575.35243908,0.00014099,2]
[402219708,1768609841400,-500.0,0.00014099,2]
[402219709,1768609841410,-500.0,0.00014099,2]
[402219710,1768609841419,-500.0,0.00014099,2]
[402219711,1768609841428,-500.0,0.00014099,2]
[402219712,1768609841438,-500.0,0.00014099,2]
[402219713,1768609841447,-500.0,0.00014099,2]
[402219714,1768609841457,-500.0,0.00014099,2]
[402219715,1768609841466,-500.0,0.00014099,2]
[402219716,1768609841475,-500.0,0.00014099,2]
[402219717,1768609841485,-500.0,0.00014099,2]
[402219718,1768609841494,-516.50114519,0.00014099,2]
[402219720,1768609841503,-500.0,0.00014099,2]
[402219722,1768609841513,-500.0,0.00014099,2]
[402219724,1768609841522,-500.0,0.00014099,2]
[402219725,1768609841532,-500.0,0.00014099,2]
[402219726,1768609841541,-500.0,0.00014099,2]
[402219727,1768609841550,-500.0,0.00014099,2]
[402219728,1768609841560,-500.0,0.00014099,2]
[402219729,1768609841570,-500.0,0.00014099,2]
[402219730,1768609841579,-2210.0,0.00014136,2]
[402219731,1768609841589,-255.0,0.00014149,2]
[402219732,1768609841599,-7939.33,0.00014153,2]
[402219733,1768609841609,-2210.0,0.00014191,2]
[402219734,1768609841618,-4320.51577774,0.00014213,2]
[402219735,1768609841627,-13822.4647637,0.00014213,2]
[402219736,1768609841636,-2210.0,0.00014246,2]
[402219737,1768609841646,-420.0,0.000143,2]
[402219738,1768609841655,-2210.0,0.00014301,2]
[402219739,1768609841665,-1432.67,0.0001431,2]
[402219740,1768609841675,-192.0,0.00014344,2]
[402219741,1768609841684,-250.0,0.00014344,2]
[402219742,1768609841694,-195.0,0.00014344,2]
[402219743,1768609841703,-2210.0,0.00014356,2]
[402219744,1768609841713,-2210.0,0.0001441,2]
[402219745,1768609841723,-600.0,0.00014425,2]
[402219746,1768609841732,-691.0058,0.00014425,2]
[402219747,1768609841742,-290.19144838,0.00014425,2]
[402219748,1768609841751,-300.0,0.00014425,2]
[402219749,1768609841760,-2500.0,0.00014425,2]
[402219750,1768609841770,-2500.0,0.00014425,2]
[402219751,1768609841782,-2237.41014273,0.00014425,2]
[402219752,1768609841792,-347.87369348,0.00014425,2]
[402219753,1768609841802,-195.0,0.00014425,2]
[402219754,1768609841812,-250.0,0.00014426,2]
[402219755,1768609841821,-195.0,0.00014426,2]
[402219756,1768609841831,-250.0,0.00014427,2]
[402219757,1768609841840,-195.0,0.00014427,2]
[402219758,1768609841849,-2210.0,0.00014465,2]
[402219759,1768609841858,-748.48614739,0.00014514,2]
[402219760,1768609841867,-2210.0,0.0001452,2]
[402219761,1768609841877,-170.72,0.0001455,2]
[402219762,1768609841887,-2210.0,0.00014575,2]
[402219763,1768609841896,-1432.67,0.00014584,2]
[402219764,1768609841906,-2210.0,0.00014629,2]
[402219765,1768609841915,-2226.19363996,0.00014684,2]
[402219766,1768609841924,-4320.51577774,0.00014739,2]
[402219767,1768609841937,-13822.4647637,0.00014739,2]
[402219768,1768609841948,-1500.0,0.0001479,2]
[402219769,1768609841957,-1432.67,0.00014858,2]
[402219770,1768609841967,-322.6107,0.0001493,2]
[402219771,1768609841977,-174.61919141,0.0001493,2]
[402219772,1768609841986,-1239.0,0.0001493,2]
[402219773,1768609841995,-2000.0,0.0001493,2]
[402219774,1768609842004,-250.0,0.0001493,2]
[402219775,1768609842013,-2000.0,0.0001493,2]
[402219776,1768609842023,-250.0,0.0001493,2]
[402219777,1768609842031,-574.12855637,0.0001493,2]
[402219778,1768609842040,-2000.0,0.0001493,2]
[402219779,1768609842049,-250.0,0.0001493,2]